fUSD/lending_fUSD_20241016
["ID","MTS","AMOUNT","RATE_DAILY","PERIOD"]
[340339919,1729067451548,-354.795735,0.00025,7]
[340339920,1729067451558,-354.795735,0.00025,7]
[340339921,1729067451567,-354.795735,0.00025,7]
[340339922,1729067451577,-354.795735,0.00025,7]
[340339923,1729067451587,-354.795735,0.00025,7]
[340339924,1729067451597,-354.795735,0.00025,7]
[340339925,1729067451606,-354.795735,0.00025,7]
[340339926,1729067451617,-354.795735,0.00025,7]
[340339927,1729067451626,-354.795735,0.00025,7]
[340339928,1729067451635,-354.795735,0.00025,7]
[340339929,1729067451646,-354.795735,0.00025,7]
[340339930,1729067451656,-354.795735,0.00025,7]
[340339931,1729067451665,-354.795735,0.00025,7]
[340339932,1729067451675,-354.795735,0.00025,7]
[340339933,1729067451685,-354.795728,0.00025,7]
[340339934,1729067451694,-150.0,0.00025,2]
[340339935,1729067451705,-246.40839033,0.00025,2]
[340339936,1729067451715,-150.0,0.00025,2]
[340339937,1729067451724,-151.0,0.00025,7]
[340339938,1729067451733,-151.0,0.00025,7]
[340339939,1729067451743,-151.0,0.00025,7]
[340339940,1729067451754,-151.0,0.00025,7]
[340339941,1729067451763,-151.0,0.00025,7]
[340339942,1729067451772,-151.0,0.00025,7]
[340339943,1729067451781,-167.350614,0.00025,7]
[340339944,1729067451791,-64803087.14198515,0.00025,2]
[340339945,1729067451812,-71453.10222775,0.00025,2]
[340339946,1729067451823,-29016.42441768,0.00025,2]
[340339947,1729067451838,-367.08784023,0.00025,2]
[340339948,1729067451849,-260.6034,0.00025,2]
[340339949,1729067451860,-446.07109998,0.00025,2]
[340339951,1729067523430,800.0,0.00026986,120]
[340339952,1729067584852,800.0,0.00026986,120]
[340339954,1729067645950,800.0,0.00026986,120]
[340339955,1729067704272,800.0,0.00026986,120]
[340339956,1729067730310,321.48,0.00026028,120]
[340339958,1729067763021,800.0,0.00026986,120]
[340339959,1729067822859,800.0,0.00026986,120]
[340339965,1729067883420,4000.0,0.00027,60]
[340339966,1729067884824,800.0,0.00026986,120]
[340339969,1729068003807,800.0,0.00026986,120]
[340339971,1729068371588,-160.2,0.00010959,2]
[340339972,1729068371612,-160.53,0.00010959,2]
[340339973,1729068371635,-150.0,0.00011,2]
[340339974,1729068371658,-150.0,0.00012301,2]
[340339975,1729068371683,-600.0,0.00012329,2]
[340339976,1729068371709,-600.0,0.00012329,2]
[340339977,1729068371731,-600.0,0.00012329,2]
[340339978,1729068371756,-600.0,0.00012329,2]
[340339979,1729068371778,-600.0,0.00012329,2]
[340339980,1729068371800,-600.0,0.00012329,2]
[340339981,1729068371823,-200.14448986,0.00012329,2]
[340339982,1729068371846,-151.0,0.00012329,2]
[340339983,1729068371870,-502.19192715,0.000124,2]
[340339984,1729068371891,-322.17861892,0.000138,2]
[340339985,1729068371912,-500.0,0.000138,2]
[340339986,1729068371940,-170.61520252,0.0001517,2]
[340339987,1729068371963,-300.0,0.00015187,2]
[340339988,1729068371986,-5916.064,0.00015188,2]
[340339989,1729068372012,-155.548,0.00015188,2]
[340339990,1729068372038,-1244.0,0.00015188,2]
[340339991,1729068372060,-551.397,0.00015188,2]
[340339992,1729068372084,-812.0,0.00015188,2]
[340339993,1729068372108,-560.0,0.00015188,2]
[340339994,1729068372139,-754.543,0.00015188,2]
[340339995,1729068372161,-1150.0,0.00015188,2]
[340339996,1729068372184,-1083.0,0.00015188,2]
[340339997,1729068372207,-1908.0,0.00015188,2]
[340339998,1729068372229,-3356.0,0.00015188,2]
[340339999,1729068372252,-812.0,0.00015188,2]
[340340000,1729068372277,-510.0,0.00016311,2]
[340340001,1729068372301,-881.05,0.00020684,2]
[340340002,1729068372324,-813.0,0.000217,2]
[340340003,1729068372347,-179.99,0.000217,3]
[340340004,1729068372371,-299.99,0.000217,7]
[340340005,1729068372393,-250.0,0.00022425,2]
[340340006,1729068372415,-200.0,0.00022482,2]
[340340007,1729068372437,-3000.0,0.000225,2]
[340340008,1729068372459,-181.8,0.000225,2]
[340340009,1729068372482,-1617.12,0.000225,2]
[340340010,1729068372506,-1000.0,0.00022538,2]
[340340011,1729068372528,-23890.0,0.00022539,2]
[340340012,1729068372551,-279.97,0.00022577,2]
[340340013,1729068372573,-157.85,0.00022611,2]
[340340014,1729068372595,-466.16,0.00022705,2]
[340340015,1729068372620,-2347.55,0.00022707,2]
[340340016,1729068372643,-250.0,0.00022728,2]
[340340017,1729068372665,-227.88,0.00022738,2]
[340340018,1729068372688,-200.0,0.0002274,2]
[340340019,1729068372709,-163.381,0.0002274,2]
[340340020,1729068372733,-158.87,0.00022744,2]
[340340021,1729068372755,-500.0,0.00022775,2]
[340340022,1729068372778,-3184.38,0.00022849,2]
[340340023,1729068372801,-163.92,0.00022911,2]
[340340024,1729068372824,-500.0,0.00022916,2]
[340340025,1729068372850,-250.0,0.00022917,2]
[340340026,1729068372877,-667.89,0.00022918,30]
[340340027,1729068372901,-881.05,0.00022948,2]
[340340028,1729068372930,-816.73,0.00022963,2]
[340340029,1729068372955,-321.48,0.00023136,2]
[340340030,1729068372978,-2751.0,0.00023235,2]
[340340031,1729068373001,-167.0,0.00023362,2]
[340340032,1729068373024,-1196.0,0.000236,2]
[340340033,1729068373050,-719.93,0.0002392,2]
[340340034,1729068373074,-719.93,0.00023927,2]
[340340035,1729068373102,-719.93,0.00023933,2]
[340340036,1729068373133,-163.381,0.00023934,2]
[340340037,1729068373163,-719.93,0.00023939,2]
[340340038,1729068373192,-719.93,0.00023946,2]
[340340039,1729068373217,-719.93,0.00023952,2]
[340340040,1729068373244,-719.93,0.00023958,2]
[340340041,1729068373270,-719.93,0.00023964,2]
[340340042,1729068373296,-719.93,0.00023971,2]
[340340043,1729068373322,-719.93,0.00023977,2]
[340340044,1729068373348,-719.93,0.00023983,2]
[340340045,1729068373376,-719.93,0.0002399,2]
[340340046,1729068373403,-719.93,0.00023996,2]
[340340047,1729068373429,-719.93,0.00024002,2]
[340340048,1729068373456,-719.93,0.00024009,2]
[340340049,1729068373483,-719.93,0.00024015,2]
[340340050,1729068373509,-719.93,0.00024021,2]
[340340051,1729068373536,-719.93,0.00024028,2]
[340340052,1729068373563,-719.93,0.00024034,2]
[340340053,1729068373589,-719.93,0.0002404,2]
[340340054,1729068373618,-816.73,0.00024111,2]
[340340055,1729068373644,-181.45,0.00024245,2]
[340340056,1729068373670,-1000.0,0.00024288,2]
[340340057,1729068373696,-1000.0,0.000243,2]
[340340058,1729068373720,-167.0,0.00024647,2]
[340340059,1729068373749,-375.0,0.00024657,2]
[340340060,1729068373777,-232.158,0.00024658,7]
[340340061,1729068373801,-151.0,0.00024725,2]
[340340062,1729068373826,-261.8181,0.000248,2]
[340340063,1729068373851,-163.9449931,0.00024873,2]
[340340064,1729068373877,-211.930545,0.0002488,7]
[340340065,1729068373903,-264.54932099,0.000249,2]
[340340066,1729068373933,-7500.0,0.000249,2]
[340340067,1729068373963,-954.6292,0.000249,2]
[340340068,1729068373990,-1000.0,0.000249,2]
[340340069,1729068374017,-1000.0,0.000249,2]
[340340070,1729068374042,-30749.01719918,0.000249,2]
[340340071,1729068374066,-179.74956087,0.000249,2]
[340340072,1729068374089,-2640.4957816,0.000249,2]
[340340073,1729068374117,-161.59275608,0.000249,2]
[340340074,1729068374143,-1591.92185861,0.000249,2]
[340340075,1729068374167,-928.6974,0.000249,2]
[340340076,1729068374192,-294.12,0.00024958,2]
[340340077,1729068374215,-159.91327915,0.00024973,2]
[340340078,1729068374241,-187.27860353,0.0002499,2]
[340340079,1729068374266,-187.27860353,0.0002499,2]
[340340080,1729068374291,-187.27860353,0.0002499,2]
[340340081,1729068374319,-2721.7163568,0.00024998,2]
[340340082,1729068374344,-185.72958012,0.00024999,2]
[340340083,1729068374371,-500.0,0.00024999,2]
[340340084,1729068374396,-500.0,0.00024999,2]
[340340085,1729068374421,-500.0,0.00024999,2]
[340340086,1729068374448,-500.0,0.00024999,2]
[340340087,1729068374476,-500.0,0.00024999,2]
[340340088,1729068374505,-500.0,0.00024999,2]
[340340089,1729068374532,-257.43538269,0.00024999,2]
[340340090,1729068374558,-278.06188417,0.00024999,2]
[340340091,1729068374583,-624.0262939,0.00024999,2]
[340340092,1729068374608,-500.0,0.00024999,2]
[340340093,1729068374635,-433.36474316,0.00024999,2]
[340340094,1729068374660,-10000.0,0.00025,2]
[340340095,1729068374684,-504.0,0.00025,2]
[340340096,1729068374711,-4841242.65771554,0.00025,2]
[340340097,1729068518943,-500.0,0.00024658,7]
[340340098,1729068518970,-1000.0,0.000249,2]
[340340099,1729068518993,-407.5104751,0.000249,2]
[340340100,1729068519016,-205.47280902,0.000249,2]
[340340101,1729068519040,-372.03490439,0.000249,2]
[340340102,1729068519065,-34293.73594363,0.000249,2]
[340340103,1729068519088,-238.783,0.000249,2]
[340340104,1729068519113,-3386.27557811,0.000249,2]
[340340105,1729068519137,-500.0,0.00024973,2]
[340340106,1729068519161,-87715.7663523,0.0002499,5]
[340340107,1729068519183,-4988.27304747,0.00024997,2]
[340340108,1729068519208,-225.0,0.00024998,2]
[340340109,1729068519233,-500.0,0.00024999,2]
[340340110,1729068519256,-500.0,0.00024999,2]
[340340111,1729068519280,-424.11791238,0.00024999,2]
[340340112,1729068519303,-499.99,0.00024999,2]
[340340113,1729068519326,-501.0,0.00025,2]
[340340114,1729068519349,-339.46048892,0.00025,2]
[340340115,1729068519372,-1863402.57948868,0.00025,2]
[340340126,1729068631443,-150.0,0.00017198,2]
[340340127,1729068631454,-300.0,0.00019725,2]
[340340128,1729068631463,-420.0,0.00021484,2]
[340340129,1729068631473,-4159.0,0.000218,2]
[340340130,1729068631484,-824.03008476,0.000249,2]
[340340131,1729068631500,-175.96991524,0.000249,2]
[340340132,1729068631510,-1329.27243933,0.000249,2]
[340340133,1729068631522,-1170.72756067,0.000249,2]
[340340134,1729068631531,-112.67229296,0.000249,2]
[340340135,1729068631614,-74.9339539,0.000249,2]
[340340136,1729068631624,-2683.79682757,0.000249,2]
[340340137,1729068631635,-3403.28988999,0.000249,2]
[340340138,1729068631671,-25486.55408244,0.000249,2]
[340340139,1729068631681,-3644.1169,0.000249,2]
[340340140,1729068631690,-150.02,0.00024938,2]
[340340141,1729068631700,-500.0,0.00024973,2]
[340340142,1729068631709,-500.0,0.00024999,2]
[340340143,1729068631719,-243.98999994,0.00024999,2]
[340340144,1729068631729,-42729.103694,0.00025,2]
[340340145,1729068631741,-201897.00000003,0.00025,2]
[340340146,1729068631752,-716.18874666,0.00025,2]
[340340147,1729068631763,-2261.75,0.00025,2]
[340340148,1729068631774,-4741.27912961,0.00025,2]
[340340156,1729068637716,-559.12249875,0.00025,2]
[340340157,1729068637731,-451620.90493639,0.00025,2]
[340340158,1729068637902,-1567.4506,0.00025,2]
[340340160,1729068639503,-11247755.9618493,0.00025,2]
[340340161,1729068639613,-736575.82442486,0.00025,2]
[340340162,1729068639670,-2604.99595685,0.00025,2]
[340340163,1729068639682,-1046.28999999,0.00025,2]
[340340220,1729068644222,-5875232.2985177,0.00025,2]
[340340221,1729068644328,-186267.72939,0.00025,2]
[340340223,1729068645733,-265.12497016,0.00025,2]
[340340258,1729068883310,550.0,0.0001,2]
[340340261,1729069493131,192.88,0.0002483,120]
[340340262,1729069743102,800.0,0.00026986,120]
[340340282,1729069831602,-300.0,0.00010817,2]
[340340284,1729069831612,-151.01,0.00010959,2]
[340340286,1729069831622,-155.49,0.00010959,2]
[340340288,1729069831631,-150.0,0.00011,2]
[340340289,1729069831641,-600.0,0.00012,2]
[340340291,1729069831654,-650.0,0.00014,2]
[340340293,1729069831664,-150.0,0.00015187,2]
[340340295,1729069831674,-300.0,0.00015187,2]
[340340296,1729069831683,-449.0,0.00015188,2]
[340340298,1729069831693,-511.38,0.00015188,2]
[340340300,1729069831705,-48.62,0.00015188,2]
[340340301,1729069831715,-812.0,0.00015188,2]
[340340303,1729069831724,-1054.032,0.00015188,2]
[340340305,1729069831733,-50.91107591,0.00015188,2]
[340340307,1729069831748,-99.88892409,0.00015188,2]
[340340309,1729069831757,-220.77419679,0.00015188,2]
[340340313,1729069831792,-714.22580321,0.00015188,2]
[340340314,1729069831801,-555.0,0.00015188,2]
[340340316,1729069831814,-1908.0,0.00015188,2]
[340340318,1729069831823,-3356.0,0.00015188,2]
[340340320,1729069831832,-809.0,0.00015188,2]
[340340322,1729069831842,-1628.95842958,0.00015188,2]
[340340324,1729069831852,-3634.81417983,0.00015188,2]
[340340326,1729069831863,-619.22739059,0.00015188,2]
[340340327,1729069831872,-150.0,0.00015188,2]
[340340329,1729069831881,-1150.0,0.00015188,2]
[340340331,1729069831891,-6780.10554462,0.00015188,2]
[340340333,1729069831902,-397.7418011,0.00015188,2]
[340340334,1729069831913,-870.48965428,0.00015188,2]
[340340335,1729069831922,-158.58787719,0.00016,2]
[340340336,1729069831934,-541.41212281,0.00016,2]
[340340337,1729069831943,-471.6,0.00016618,2]
[340340338,1729069831953,-420.0,0.00016618,2]
[340340339,1729069831962,-151.01,0.0001796,2]
[340340340,1729069831971,-168.97616615,0.00018184,2]
[340340341,1729069831990,-298.02383385,0.00018184,2]
[340340342,1729069831999,-155.49,0.00019361,2]
[340340343,1729069832008,-268.65189962,0.00020494,2]
[340340377,1729069837873,-467.6403731,0.00020494,2]
[340340387,1729069839633,-143.00772728,0.00020494,2]
[340340389,1729069839644,-3743.0,0.00022,2]
[340340391,1729069839655,-664.92,0.00022049,2]
[340340393,1729069839665,-500.0,0.0002207,2]
[340340395,1729069839675,-192.88,0.00022071,2]
[340340397,1729069839684,-352.02,0.00022134,2]
[340340399,1729069839694,-250.0,0.00022188,2]
[340340401,1729069839704,-250.0,0.00022188,2]
[340340403,1729069839714,-186.07227272,0.00022198,2]
[340340418,1729069839854,-813.92772728,0.00022198,2]
[340340420,1729069839864,-161.08827272,0.00022204,2]
[340340423,1729069839887,-88.91172728,0.00022204,2]
[340340425,1729069839898,-200.0,0.00022217,2]
[340340427,1729069839908,-163.381,0.00022217,2]
[340340429,1729069839918,-2068.8,0.00022356,2]
[340340431,1729069839928,-1379.39,0.00022729,2]
[340340433,1729069839937,-879.3,0.00022758,2]
[340340435,1729069839947,-490.03,0.0002287,2]
[340340437,1729069839957,-158.87,0.00023025,2]
[340340439,1729069839967,-675.25,0.00023251,30]
[340340441,1729069839977,-163.381,0.00023383,2]
[340340442,1729069839986,-68.67348001,0.00023388,3]
[340340606,1729069842645,-83.32651999,0.00023388,3]
[340340607,1729069842654,-3000.0,0.000236,2]
[340340608,1729069842664,-151.2,0.00023981,2]
[340340609,1729069842674,-490.03,0.00024013,2]
[340340610,1729069842684,-159.31,0.00024055,2]
[340340611,1729069842693,-1738.22576466,0.00024055,2]
[340340612,1729069842706,-508.06423534,0.00024055,2]
[340340613,1729069842715,-1103.77993624,0.000241,2]
[340340614,1729069842727,-1008.54,0.000241,2]
[340340618,1729070237485,659.2,0.0002488,120]
[340340695,1729070688882,550.0,0.0001,2]
[340340711,1729071031772,-150.0,0.00010899,2]
[340340712,1729071031782,-522.592,0.000109,2]
[340340713,1729071031837,-6379.71782852,0.000109,2]
[340340714,1729071031849,-1653.46659865,0.000109,2]
[340340715,1729071031861,-3350.40350675,0.000109,2]
[340340716,1729071031898,-496.3329089,0.000109,2]
[340340717,1729071031910,-1684.507999,0.000109,2]
[340340718,1729071031961,-4328.91690403,0.000109,2]
[340340719,1729071031972,-818.15190406,0.000109,2]
[340340720,1729071032024,-3343.85385442,0.000109,2]
[340340721,1729071032036,-269.0000005,0.000109,2]
[340340722,1729071032047,-745.31368766,0.000109,2]
[340340723,1729071032059,-7861.56695651,0.000109,2]
[340340724,1729071032071,-266.95294903,0.000109,2]
[340340725,1729071032082,-415.09721781,0.000109,2]
[340340726,1729071032099,-308.807424,0.000109,2]
[340340727,1729071032110,-1796.69406385,0.000109,2]
[340340728,1729071032124,-818.95666546,0.000109,2]
[340340729,1729071032135,-7103.01487636,0.000109,2]
[340340742,1729071037813,-864.60851812,0.000109,2]
[340340743,1729071037872,-1000.0,0.000109,2]
[340340744,1729071037884,-304.56000055,0.000109,2]
[340340745,1729071037895,-373.72250086,0.000109,2]
[340340746,1729071037907,-75043.49308341,0.000109,2]
[340340747,1729071037916,-359.49912172,0.000109,2]
[340340748,1729071037926,-484.01800005,0.000109,2]
[340340749,1729071037935,-815.02095016,0.000109,2]
[340340750,1729071037945,-157.9,0.00010959,2]
[340340751,1729071037955,-160.2,0.00010959,2]
[340340752,1729071037964,-500.0,0.00010973,2]
[340340753,1729071037973,-500.0,0.00010973,2]
[340340754,1729071037982,-202.88987294,0.00010999,2]
[340340755,1729071037992,-344.04502958,0.00010999,2]
[340340756,1729071038001,-500.0,0.00010999,2]
[340340757,1729071038011,-649.21811624,0.00010999,2]
[340340758,1729071038020,-500.0,0.00010999,2]
[340340759,1729071038030,-500.0,0.00010999,2]
[340340760,1729071038039,-500.0,0.00010999,2]
[340340761,1729071038049,-500.0,0.00010999,2]
[340340762,1729071038058,-500.0,0.00010999,2]
[340340763,1729071038068,-500.0,0.00010999,2]
[340340764,1729071038078,-500.0,0.00010999,2]
[340340765,1729071038089,-500.0,0.00010999,2]
[340340766,1729071038099,-500.0,0.00010999,2]
[340340767,1729071038108,-430.91257085,0.00010999,2]
[340340768,1729071038117,-365.59215969,0.00010999,2]
[340340769,1729071038126,-500.0,0.00010999,2]
[340340770,1729071038135,-500.0,0.00010999,2]
[340340771,1729071038144,-500.0,0.00010999,2]
[340340772,1729071038154,-500.0,0.00010999,2]
[340340773,1729071038163,-500.0,0.00010999,2]
[340340774,1729071038172,-500.0,0.00010999,2]
[340340775,1729071038182,-500.0,0.00010999,2]
[340340776,1729071038191,-500.0,0.00010999,2]
[340340777,1729071038200,-500.0,0.00010999,2]
[340340778,1729071038210,-500.0,0.00010999,2]
[340340779,1729071038219,-500.0,0.00010999,2]
[340340780,1729071038228,-500.0,0.00010999,2]
[340340781,1729071038237,-500.0,0.00010999,2]
[340340782,1729071038246,-500.0,0.00010999,2]
[340340783,1729071038255,-500.0,0.00010999,2]
[340340784,1729071038264,-500.0,0.00010999,2]
[340340785,1729071038274,-256.5855289,0.00010999,2]
[340340786,1729071038283,-500.0,0.00010999,2]
[340340787,1729071038292,-500.0,0.00010999,2]
[340340788,1729071038302,-150.0,0.00011,2]
[340340789,1729071038311,-296133.47987854,0.00011,2]
[340340790,1729071038324,-35283.02693074,0.00011,2]
[340340791,1729071038335,-536.98579077,0.00011,2]
[340340792,1729071038348,-568.25215555,0.00011,2]
[340340793,1729071038363,-810860.93612663,0.00011,2]
[340340794,1729071038374,-1466.63911827,0.00011,2]
[340340795,1729071038385,-10650.84669234,0.00011,2]
[340340796,1729071038396,-2944.34240302,0.00011,2]
[340340797,1729071038407,-9101.3781579,0.00011,2]
[340340798,1729071038418,-8693.51986952,0.00011,2]
[340340799,1729071038429,-1381.24087936,0.00011,2]
[340340806,1729071039850,-3147.49311843,0.00011,2]
[340340862,1729071042865,-423.97074858,0.00011,2]
[340340863,1729071043041,-635.12431874,0.00011,2]
[340340864,1729071043094,-12913.34336,0.00011,2]
[340340865,1729071043156,-21265.68264158,0.00011,2]
[340340866,1729071043218,-1203.63303005,0.00011,2]
[340340904,1729071807131,150.0,2.45e-05,2]
[340340905,1729071807153,206.76273498,2.45e-05,2]
[340340906,1729071807178,2656.85726502,2.45e-05,2]
[340340907,1729071810636,-150.0,0.00010691,2]
[340340908,1729071812093,-284.05,0.0001078,2]
[340340909,1729071962094,23600.15,9.92e-05,2]
[340340917,1729072186492,3566.59,9.92e-05,2]
[340340927,1729072231923,-201.87791363,0.00010859,2]
[340340928,1729072231932,-703.99587894,0.000109,2]
[340340929,1729072231981,-127.4315622,0.000109,2]
[340340930,1729072231991,-472.73510983,0.000109,2]
[340340931,1729072232000,-160.53,0.00010959,2]
[340340932,1729072232010,-151.01,0.00010959,2]
[340340933,1729072232019,-250.0,0.00010959,2]
[340340934,1729072232028,-227.48689619,0.00010973,2]
[340340935,1729072232037,-300.0,0.00010998,2]
[340340936,1729072232047,-123796.2,0.00010999,2]
[340340937,1729072232056,-150.0,0.00010999,2]
[340340938,1729072232065,-500.0,0.00010999,2]
[340340939,1729072232074,-168.59162465,0.00010999,2]
[340340940,1729072232083,-500.0,0.00010999,2]
[340340941,1729072232092,-254.82402645,0.00010999,2]
[340340942,1729072232102,-429.47893092,0.00010999,2]
[340340943,1729072232111,-402.88194249,0.00010999,2]
[340340944,1729072232119,-236876.98148736,0.00011,2]
[340340945,1729072232134,-1450.0,0.00011,2]
[340340946,1729072232147,-844.63596783,0.00011,2]
[340340947,1729072232159,-2628.5378031,0.00011,2]
[340340948,1729072232171,-6472.8,0.00011,2]
[340340949,1729072232182,-2930.75050589,0.00011,2]
[340340950,1729072232194,-3660.97053496,0.00011,2]
[340340951,1729072232205,-261.61765401,0.00011,2]
[340340952,1729072232220,-3371.6,0.00011,2]
[340340961,1729072238066,-1042.82955653,0.00011,2]
[340340962,1729072238452,-1739.23330602,0.00011,2]
[340340963,1729072238512,-1000.0,0.00011,2]
[340340972,1729072239976,-3707.39034711,0.00011,2]
[340340975,1729072239989,-1522.39312608,0.00011,2]
[340340980,1729072240036,-80039.87520665,0.00011,2]
[340340988,1729072240098,-17588.60619722,0.00011,2]
[340340989,1729072240163,-1940.79,0.00011,2]
[340340990,1729072240175,-4050.47539104,0.00011,2]
[340340991,1729072240187,-17177.68560891,0.00011,2]
[340340992,1729072240223,-19830.36041718,0.00011,2]
[340341055,1729072243038,-279.92356222,0.00011,2]
[340341056,1729072243050,-759.4936,0.00011,2]
[340341057,1729072243098,-4077.49325047,0.00011,2]
[340341058,1729072243110,-1498.78416603,0.00011,2]
[340341059,1729072243121,-5751.89785844,0.00011,2]
[340341060,1729072243133,-500.0,0.00011,2]
[340341061,1729072243166,-759753.763972,0.00011,2]
[340341062,1729072243179,-10189.34831117,0.00011,2]
[340341063,1729072243191,-716.4,0.00011,2]
[340341064,1729072243203,-480.7630145,0.00011,2]
[340341065,1729072243230,-1904.98,0.00011,2]
[340341066,1729072243243,-6558.7157595,0.00011,2]
[340341071,1729072245964,-94681.39080816,0.00011,2]
[340341072,1729072246186,-1263.30000001,0.00011,2]
[340341084,1729072494543,550.0,0.0001,2]
[340341085,1729072756548,150.0,9.999e-05,2]
[340341086,1729072756571,150.0,9.999e-05,2]
[340341087,1729072756590,191.46235498,9.999e-05,2]
[340341088,1729072756616,128.37764502,9.999e-05,2]
[340341089,1729072827186,-227.24,0.0001078,2]
[340341090,1729072827207,-165.87785547,0.0001078,2]
[340341091,1729072827230,-504.20338303,0.000109,2]
[340341092,1729072827251,-150.21922956,0.000109,2]
[340341093,1729072827273,-150.04,0.00010959,2]
[340341094,1729072827293,-500.12277133,0.00010973,2]
[340341095,1729072827314,-502.08720999,0.00010973,2]
[340341096,1729072827336,-150.0,0.00010999,2]
[340341097,1729072827360,-347650.20955062,0.00011,2]
[340341490,1729073130373,-300.0,0.00010899,2]
[340341491,1729073130397,-3644.1169,0.000109,2]
[340341492,1729073130421,-25486.554,0.000109,2]
[340341493,1729073130446,-980.76,0.00010959,2]
[340341494,1729073130470,-34293.73594363,0.00010973,2]
[340341495,1729073130494,-401.35462422,0.00010973,2]
[340341496,1729073130517,-500.0,0.00010973,2]
[340341497,1729073130540,-1000.0,0.00010999,2]
[340341498,1729073130567,-2798393.47853215,0.00011,2]
[340341499,1729073136710,158.87,9.92e-05,2]
[340341500,1729073160513,1259.7,8.219e-05,2]
[340341501,1729073165297,180.02,9.92e-05,2]
[340341503,1729073195939,417.75,9.92e-05,2]
[340341504,1729073196477,1783.29,9.92e-05,2]
[340341505,1729073309579,200.0,9.92e-05,2]
[340341506,1729073324329,500.0,9.92e-05,2]
[340341531,1729073432225,-500.0,0.00010472,2]
[340341532,1729073432236,-332.75527609,0.00010472,2]
[340341533,1729073432260,-426.94472391,0.00010472,2]
[340341534,1729073432270,-150.0,0.00010899,2]
[340341535,1729073432279,-654.9065965,0.000109,2]
[340341536,1729073432290,-311.84172578,0.000109,2]
[340341537,1729073432301,-424.87953154,0.000109,2]
[340341538,1729073432312,-1994.64772429,0.000109,2]
[340341539,1729073432321,-486.3573,0.000109,2]
[340341540,1729073432331,-7092.356,0.000109,2]
[340341541,1729073432340,-153.78881166,0.000109,2]
[340341542,1729073432349,-161.59275608,0.000109,2]
[340341543,1729073432358,-372.03490439,0.000109,2]
[340341544,1729073432367,-2640.4957816,0.000109,2]
[340341545,1729073432376,-407.5104751,0.000109,2]
[340341546,1729073432385,-179.21624688,0.000109,2]
[340341547,1729073432397,-538.29120614,0.000109,2]
[340341548,1729073432408,-14695.28286241,0.000109,2]
[340341549,1729073432419,-258.36497239,0.000109,2]
[340341550,1729073432520,-1430.90753624,0.000109,2]
[340341551,1729073432532,-1200.0,0.000109,2]
[340341552,1729073432543,-15387.2078973,0.000109,2]
[340341554,1729073432553,-179.74956087,0.000109,2]
[340341555,1729073432562,-62.25301936,0.000109,2]
[340341556,1729073432572,-379.0,0.000109,2]
[340341586,1729073438361,-21.50489594,0.000109,2]
[340341587,1729073438371,-205.47280902,0.000109,2]
[340341588,1729073438381,-159.04,0.00010959,2]
[340341589,1729073438390,-322.17861892,0.00010973,2]
[340341590,1729073438400,-498.8982,0.00010973,2]
[340341591,1729073438410,-500.0,0.00010973,2]
[340341592,1729073438420,-187.27860353,0.0001099,2]
[340341593,1729073438429,-187.27860353,0.0001099,2]
[340341594,1729073438439,-187.27860353,0.0001099,2]
[340341595,1729073438450,-4988.27304747,0.00010997,2]